bitfinex-derivatives/quotes_ETHF0:USTF0_20250612
["timestamp","ask_amount","ask_price","bid_price","bid_amount"]
[1749767725591,0.75703,2640.6,2640.5,6.478]
[1749767726188,4.51117505,2640.8,2639.9,0.75723]
[1749767726396,0.75711,2640.3,2640.2,6.478]
[1749767726700,0.75723,2640.0,2639.9,0.75723]
[1749767726899,0.75723,2640.0,2639.9,8.43913]
[1749767727099,0.75723,2640.0,2639.9,7.6819]
[1749767727297,0.75723,2640.0,2639.9,7.13923]
[1749767728596,0.75723,2640.0,2639.9,6.382]
[1749767728797,0.75723,2640.0,2639.9,7.13923]
[1749767729497,0.75723,2640.0,2639.9,6.382]
[1749767729694,0.75723,2639.9,2639.8,0.00567505]
[1749767729899,3.30483,2639.9,2639.8,0.00567505]
[1749767730099,0.75729,2639.7,2639.6,0.0620172]
[1749767730291,3.96509,2639.7,2639.6,0.0620172]
[1749767742605,3.2078,2639.7,2639.6,0.8193372]
[1749767742812,0.75724,2640.0,2639.9,0.75721]
[1749767743113,3.2078,2640.5,2639.9,6.383]
[1749767743307,0.75717,2640.1,2640.0,2.04159]
[1749767743505,0.75717,2640.1,2640.0,1.2844]
[1749767744012,0.75717,2640.1,2640.0,2.0416]
[1749767746010,3.96495,2640.2,2640.1,0.75717]
[1749767746211,3.2078,2640.5,2640.1,0.6562]
[1749767746514,0.7571,2640.4,2640.3,0.75709]
[1749767746714,0.7571,2640.4,2640.3,8.41229]
[1749767747015,0.7571,2640.4,2640.3,7.6552]
[1749767750316,0.7571,2640.4,2640.3,6.383]
[1749767750614,0.7571,2640.4,2640.3,0.0620172]
[1749767750809,1.9855,2640.4,2640.3,0.0620172]
[1749767753216,0.7571,2640.4,2640.3,0.0620172]
[1749767753614,3.2078,2640.5,2640.4,0.75709]
[1749767753810,0.00567505,2640.8,2640.7,0.757]
[1749767754917,0.76264505,2640.8,2640.7,0.757]
[1749767755313,0.00567505,2640.8,2640.7,0.757]
[1749767755715,3.2078,2641.3,2640.8,1.89243]
[1749767755917,3.2078,2641.3,2641.2,0.75686]
[1749767756311,0.75686,2641.2,2641.1,1.825]
[1749767756921,0.75686,2641.2,2641.1,2.58189]
[1749767757425,3.2078,2641.3,2641.2,0.75686]
[1749767757810,0.00567505,2641.4,2641.3,0.75683]
[1749767758011,0.00567505,2641.4,2641.3,7.12683]
[1749767758519,0.00567505,2641.4,2641.3,8.39943]
[1749767758921,0.00567505,2641.4,2641.3,13.39943]
[1749767759522,3.2078,2642.1,2641.9,0.75664]
[1749767759718,3.9644,2642.1,2642.0,7.6544]
[1749767759919,3.9644,2642.1,2642.0,8.41103]
[1749767760218,3.9644,2642.1,2642.0,6.37]
[1749767761222,3.9644,2642.1,2642.0,7.12663]
[1749767761722,3.9644,2642.1,2642.0,6.37]
[1749767762221,3.9644,2642.1,2642.0,7.6544]
[1749767763828,3.9644,2642.1,2642.0,8.41103]
[1749767764124,0.7566,2642.2,2642.1,0.75658]
[1749767764617,0.7566,2642.1,2642.0,7.6544]
[1749767765619,0.75659,2642.2,2642.1,0.75657]
[1749767765821,0.00567505,2642.3,2642.2,0.75657]
[1749767766224,0.7566,2642.2,2642.1,0.75658]
[1749767766428,0.00567505,2642.3,2642.2,0.75657]
[1749767766625,0.76221505,2642.3,2642.2,0.75657]
[1749767766924,0.7566,2642.1,2642.0,0.0620172]
[1749767767223,3.2078,2642.2,2642.1,0.7566]
[1749767767421,0.00567505,2642.3,2642.2,1.40877]
[1749767767821,0.00567505,2642.3,2642.2,4.61657]
[1749767768430,0.00567505,2642.3,2642.2,1.40877]
[1749767769023,0.00567505,2642.3,2642.2,4.61657]
[1749767769222,0.76221505,2642.3,2642.2,0.6522]
[1749767769630,0.75663,2642.0,2641.9,3.2078]
[1749767769826,0.75663,2642.0,2641.9,33.3548]
[1749767770618,0.75663,2642.0,2641.9,34.11146]
[1749767771532,0.00567505,2642.3,2641.9,33.3548]
[1749767771825,0.00567505,2642.3,2642.2,0.75657]
[1749767772031,0.00567505,2642.3,2642.2,3.96437]
[1749767772235,4.4511,2643.3,2643.0,0.75632]
[1749767772436,0.75628,2643.2,2643.1,6.367]
[1749767772634,0.75628,2643.2,2643.1,7.12329]
[1749767773227,3.2078,2643.3,2643.1,6.367]
[1749767773430,3.2078,2643.3,2643.2,0.75628]
[1749767773934,0.75628,2643.2,2643.1,7.12329]
[1749767774431,3.96407,2643.3,2643.2,0.75628]
[1749767774735,0.00567505,2643.4,2643.3,0.75626]
[1749767774934,0.00567505,2643.4,2643.3,24.53526]
[1749767775932,3.2078,2644.8,2643.3,32.568]
[1749767776131,3.2078,2644.8,2644.0,1.89015]
[1749767776334,3.2078,2644.8,2644.1,30.8337]
[1749767776535,3.2078,2644.8,2644.4,0.75594]
[1749767776734,0.75588,2644.6,2644.5,6.365]
[1749767777234,0.75594,2644.4,2644.3,0.00567505]
[1749767777835,1.38114,2644.4,2644.3,0.00567505]
[1749767778729,0.75594,2644.4,2644.3,0.00567505]
[1749767778926,0.00567505,2644.8,2644.3,0.00567505]
[1749767779132,0.00567505,2644.8,2644.3,30.16867505]
[1749767779340,0.75591,2644.5,2644.4,0.6315]
[1749767779734,0.75594,2644.4,2644.3,0.00567505]
[1749767780038,0.75594,2644.4,2644.3,6.36967505]
[1749767782235,0.00567505,2644.8,2644.5,0.75589]
[1749767782441,0.00567505,2644.8,2644.6,23.805]
[1749767782626,0.76150505,2644.8,2644.7,6.363]
[1749767782831,0.00567505,2644.8,2644.7,7.11886]
[1749767783338,0.00567505,2644.8,2644.7,8.33586]
[1749767783642,0.76150505,2644.8,2644.7,30.176]
[1749767784937,0.00567505,2644.8,2644.7,30.93186]
[1749767787341,0.00567505,2644.8,2644.7,34.13966]
[1749767787541,0.00567505,2644.8,2644.7,10.97086]
[1749767787844,0.00567505,2644.8,2644.7,34.77486]
[1749767788142,0.06769225,2644.8,2644.7,34.77486]
[1749767789044,0.00567505,2644.8,2644.7,34.77486]
[1749767789844,0.76150505,2644.8,2644.7,1.40006]
[1749767790048,0.76150505,2644.8,2644.7,31.56506]
[1749767791434,0.00567505,2644.8,2644.7,31.56506]
[1749767791639,0.76150505,2644.8,2644.7,31.56506]
[1749767792046,0.76150505,2644.8,2644.7,31.54406]
[1749767792550,0.00567505,2644.8,2644.7,31.54406]
[1749767792739,0.76150505,2644.8,2644.7,31.54406]
[1749767794141,0.00567505,2644.8,2644.7,31.54406]
[1749767794738,0.76150505,2644.8,2644.7,31.54406]
[1749767796444,0.00567505,2644.8,2644.7,31.54406]
[1749767797949,0.00567505,2644.8,2644.4,27.97063]
[1749767797950,0.75592,2644.5,2644.4,26.0808]
[1749767798250,2.03087,2644.7,2644.6,0.75589]
[1749767798542,0.00567505,2644.8,2644.7,0.75586]
[1749767798737,0.00567505,2644.8,2644.7,3.29066]
[1749767799945,0.00567505,2644.8,2644.7,6.49846]
[1749767800143,0.06769225,2644.8,2644.7,6.49846]
[1749767801143,0.00567505,2644.8,2644.7,6.49846]
[1749767804547,0.76150505,2644.8,2644.7,6.49846]
[1749767804742,0.00567505,2644.8,2644.7,6.49846]
[1749767804947,0.00567505,2644.8,2644.7,30.25146]
[1749767805155,0.76150505,2644.8,2644.7,30.25146]
[1749767805449,0.75592,2644.6,2644.5,0.75589]
[1749767805654,0.75592,2644.5,2644.4,26.0808]
[1749767805852,1.38582,2644.5,2644.4,56.2168]
[1749767806051,1.38582,2644.5,2644.4,32.4638]
[1749767806250,1.38582,2644.5,2644.4,56.2168]
[1749767807447,1.38582,2644.5,2644.4,32.4638]
[1749767807654,0.82356225,2644.8,2644.5,1.8898]
[1749767807961,0.06769225,2644.8,2644.7,0.75586]
[1749767808460,0.00567505,2644.8,2644.7,0.75586]
[1749767808754,0.00567505,2644.8,2644.7,3.96366]
[1749767809059,0.75588,2644.7,2644.6,0.75586]
[1749767809256,0.75594,2644.5,2644.4,0.75594]
[1749767809448,0.7559,2644.6,2644.5,0.75588]
[1749767809650,0.7559,2644.6,2644.5,24.50888]
[1749767810056,0.75589,2644.6,2644.5,30.137]
[1749767810356,0.75594,2644.4,2644.3,0.00567505]
[1749767811159,1.39024,2644.4,2644.3,0.00567505]
[1749767813857,0.75606,2644.0,2643.9,6.384]
[1749767816360,0.75613,2643.8,2643.7,0.00567505]
[1749767817757,0.75613,2643.8,2643.7,0.76183505]
[1749767817960,3.2078,2644.2,2643.7,0.00567505]
[1749767818154,0.75613,2643.9,2643.8,0.75609]
[1749767818359,0.75613,2643.8,2643.7,2.03221505]
[1749767818655,0.75613,2643.8,2643.7,24.51881505]
[1749767820463,0.75611,2643.9,2643.8,0.75609]
[1749767820964,0.75613,2643.8,2643.7,0.00567505]
[1749767821165,0.75613,2643.8,2643.7,23.76367505]
[1749767821563,1.20943,2643.8,2643.7,23.76367505]
[1749767822273,1.20943,2643.8,2643.6,32.4518]
[1749767822274,0.75628,2643.4,2643.3,0.75627]
[1749767822462,0.75628,2643.4,2643.3,30.87427]
[1749767822962,1.2705,2643.7,2643.4,0.75621]
[1749767822963,0.75625,2643.5,2643.4,0.75621]
[1749767823760,1.2705,2643.7,2643.3,30.118]
[1749767823961,3.6611,2643.8,2643.4,1.89063]
[1749767824160,4.41725,2643.8,2643.7,0.75616]
[1749767824359,3.6611,2643.8,2643.7,7.11716]
[1749767824563,0.4533,2643.8,2643.7,30.87616]
[1749767824968,9.9e-06,2643.8,2643.7,37.11016]
[1749767825265,1.51074,2644.5,2644.4,0.75596]
[1749767825867,3.8736,2644.6,2644.5,0.75593]
[1749767826161,1.4217,2644.6,2644.5,0.75593]
[1749767826366,0.75596,2644.4,2644.3,30.12]
[1749767826565,0.75596,2644.4,2644.3,30.87599]
[1749767826968,0.75595,2644.5,2644.4,0.75594]
[1749767827172,1.42172,2644.6,2644.5,0.75593]
[1749767827464,0.75593,2644.5,2644.4,1.2754]
[1749767827767,0.75605,2644.1,2644.0,30.118]
[1749767828870,0.75605,2644.1,2644.0,6.36]
[1749767829263,1.40665,2644.1,2644.0,6.36]
[1749767829867,0.755,2644.2,2644.1,0.75605]
[1749767830265,0.755,2644.2,2644.1,2.07665]
[1749767830471,1.51102,2644.2,2644.1,2.07665]
[1749767830872,0.75605,2644.1,2644.0,7.11606]
[1749767831771,0.75605,2644.1,2644.0,6.36]
[1749767832574,1.51104,2644.2,2644.1,0.75605]
[1749767832872,0.75605,2644.1,2644.0,6.36]
[1749767833171,1.40585,2644.1,2644.0,6.36]
[1749767833767,0.75605,2644.1,2644.0,6.36]
[1749767833968,0.75605,2644.1,2644.0,7.6813]
[1749767834170,1.51104,2644.2,2644.1,0.75605]
[1749767834669,0.755,2644.2,2644.1,0.75605]
[1749767835171,0.755,2644.2,2644.1,9.52678884]
[1749767835566,0.755,2644.2,2644.1,5.75605]
[1749767836675,0.00567505,2644.8,2644.7,0.75588]
[1749767836870,0.00567505,2644.8,2644.7,30.87288]
[1749767837475,0.76152505,2644.8,2644.7,31.50448]
[1749767837779,0.76152505,2644.8,2644.7,30.7486]
[1749767838469,0.76152505,2644.8,2644.7,31.50448]
[1749767839277,0.00567505,2644.8,2644.7,31.50448]
[1749767839780,0.76152505,2644.8,2644.7,31.50448]
[1749767840272,0.00567505,2644.8,2644.7,31.50448]
[1749767841881,0.06769225,2644.8,2644.7,31.50448]
[1749767842079,0.82354225,2644.8,2644.7,31.50448]
[1749767842876,0.82354225,2644.8,2644.7,7.74748]
[1749767843084,0.75596,2644.4,2644.3,3.76479537]
[1749767843280,0.75605,2644.1,2644.0,5.27777313]
[1749767843579,0.7561,2643.9,2643.8,9.5668]
[1749767843776,0.7561,2643.9,2643.5,0.75621]
[1749767843777,0.75619,2643.6,2643.5,6.359]
[1749767844283,0.75619,2643.6,2643.5,30.111]
[1749767844787,0.75628,2643.3,2643.2,0.00567505]
[1749767844985,3.96408,2643.3,2643.2,0.00567505]
[1749767845282,8.96408,2643.3,2643.2,0.00567505]
[1749767845483,3.96408,2643.3,2643.2,0.00567505]
[1749767846181,8.96408,2643.3,2643.2,0.00567505]
[1749767846381,3.96408,2643.3,2643.2,0.00567505]
[1749767849285,0.75628,2643.3,2643.2,0.00567505]
[1749767850185,3.96408,2643.3,2643.2,0.00567505]
[1749767850383,0.75642,2642.8,2642.7,6.359]
[1749767850584,0.75651,2642.5,2642.4,9.5678]
[1749767851490,0.75651,2642.5,2642.4,6.36]
[1749767851689,0.75651,2642.5,2642.4,7.11653]
[1749767851882,3.83427505,2642.7,2642.6,0.75648]
[1749767852092,0.75651,2642.6,2642.5,0.7565]
[1749767852298,0.75651,2642.6,2642.5,2.0031]
[1749767853692,0.75651,2642.5,2642.4,6.36]
[1749767853889,0.75656,2642.3,2642.2,0.00567505]
[1749767854484,2.03006,2642.3,2642.2,0.00567505]
[1749767856590,0.75656,2642.3,2642.2,0.00567505]
[1749767858590,2.06836,2642.3,2642.2,0.00567505]
[1749767860405,0.75656,2642.3,2642.2,0.00567505]
[1749767860605,0.75656,2642.3,2642.2,0.76226505]
[1749767860803,0.00567505,2642.7,2642.3,0.75656]
[1749767861004,5.05e-06,2642.7,2642.6,3.96428]
[1749767861303,5.05e-06,2642.7,2642.6,10.32628]
[1749767861704,5.05e-06,2642.7,2642.6,3.96428]
[1749767862015,5.05e-06,2642.7,2642.6,30.88548]
[1749767864008,5.05e-06,2642.7,2642.6,35.88548]
[1749767864409,5.05e-06,2642.7,2642.6,30.88548]
[1749767868321,5.05e-06,2642.7,2642.6,58.76348]
[1749767868514,3.2078,2643.9,2642.9,3.78195]
[1749767868714,3.2078,2643.9,2643.8,0.75613]
[1749767868917,3.9639,2643.9,2643.8,30.88113]
[1749767869317,3.9639,2643.9,2643.8,30.125]
[1749767869711,0.75616,2643.7,2643.6,0.00567505]
[1749767871918,5.75616,2643.7,2643.6,0.00567505]
[1749767873421,0.75616,2643.7,2643.6,0.00567505]
[1749767873625,0.75628,2643.3,2643.2,6.361]
[1749767876317,1.99408,2643.3,2643.2,6.361]
[1749767877016,0.75628,2643.3,2643.2,6.361]
[1749767878230,0.75633,2643.1,2643.0,0.00567505]
[1749767881222,0.75645,2642.7,2642.6,3.2078]
[1749767881434,0.75639,2643.0,2642.9,0.75636]
[1749767881629,1.89085,2643.1,2642.7,1.2279]
[1749767881826,0.75642,2642.8,2642.7,1.98433]
[1749767882225,0.75642,2642.8,2642.7,8.34233]
[1749767883231,5.0986,2643.2,2642.7,8.34233]
[1749767883536,0.75641,2643.0,2642.9,0.75637]
[1749767883831,0.75639,2642.9,2642.8,2.6431]
[1749767884032,1.89113,2642.7,2642.2,3.76479537]
[1749767884230,0.75662,2642.1,2642.0,6.358]
[1749767884636,0.75662,2642.1,2642.0,7.11465]
[1749767885438,0.75662,2642.1,2642.0,6.358]
[1749767886237,1.41592,2642.1,2642.0,6.358]
[1749767887134,1.41592,2642.1,2641.4,8.81649537]
[1749767887135,0.75676,2641.6,2641.5,6.359]
[1749767887429,0.75676,2641.6,2641.5,7.11579]
[1749767888134,0.75676,2641.6,2641.5,6.359]
[1749767890340,0.75689,2641.2,2641.1,0.75688]
[1749767890535,0.75689,2641.2,2641.1,6.36]
[1749767891039,0.75691,2641.1,2641.0,3.2078]
[1749767891339,0.75702,2640.7,2640.6,10.32485]
[1749767891643,0.75702,2640.7,2640.6,6.36]
[1749767891939,3.2078,2640.8,2640.3,0.75712]
[1749767892236,0.75714,2640.3,2640.2,0.75714]
[1749767892635,3.2078,2640.4,2639.9,1.2198]
[1749767892838,0.75725,2640.0,2639.9,0.75725]
[1749767893038,4.484,2640.4,2639.8,6.9743]
[1749767893341,0.75714,2640.3,2639.9,1.2128]
[1749767893640,0.6258,2640.6,2639.9,1.2128]
[1749767893641,0.75718,2640.2,2640.1,0.75718]
[1749767894035,0.7572,2640.1,2640.0,0.7572]
[1749767894233,0.75718,2640.2,2640.1,0.75718]
[1749767894727,0.75721,2640.1,2640.0,0.75721]
[1749767894931,0.7572,2640.1,2640.0,0.7572]
[1749767895332,0.75719,2640.2,2640.1,0.75717]
[1749767895943,0.75721,2640.1,2640.0,0.75721]
[1749767896243,3.2078,2640.7,2640.6,0.75705]
[1749767896439,3.78323,2642.1,2640.4,6.362]
[1749767896440,3.2078,2641.0,2640.4,6.362]
[1749767896641,0.75698,2640.9,2640.8,0.75698]
[1749767897142,0.75702,2640.8,2640.7,0.75701]
[1749767897345,3.2078,2641.0,2640.5,8.3415]
[1749767897637,0.75701,2640.8,2640.7,0.75701]
[1749767898037,0.75698,2640.9,2640.8,0.75698]
[1749767898236,0.75702,2640.8,2640.7,0.757]
[1749767900239,0.75705,2640.7,2640.6,0.75703]
[1749767900541,0.75705,2640.6,2640.5,6.362]
[1749767900847,0.75714,2640.3,2640.2,0.75715]
[1749767901051,0.75714,2640.3,2640.2,2.05235]
[1749767901445,0.75712,2640.4,2640.3,0.7571]
[1749767901943,0.75714,2640.3,2640.2,2.1143572]
[1749767902744,0.75712,2640.5,2640.4,0.75708]
[1749767902949,0.75711,2640.4,2640.3,2.01462]
[1749767903546,0.75708,2640.6,2640.5,0.75706]
[1749767903739,0.75716,2640.2,2640.1,3.2078]
[1749767903949,0.75719,2640.1,2640.0,7.75291]
[1749767905444,3.2078,2641.0,2640.0,11.9957]
[1749767905748,3.2078,2641.0,2640.9,0.75696]
[1749767905939,3.2078,2641.4,2641.2,0.75688]
[1749767906140,0.76252505,2641.3,2641.2,0.75688]
[1749767906339,0.00567505,2641.3,2641.2,0.75688]
[1749767906545,0.75688,2641.2,2641.1,2.07989]
[1749767907049,0.00567505,2641.3,2641.2,0.75688]
[1749767908552,0.75688,2641.2,2641.1,4.5308]
[1749767908749,0.75688,2641.2,2641.1,7.683]
[1749767908944,0.00567505,2641.3,2640.8,10.32479]
[1749767909147,0.75696,2640.9,2640.8,7.11699]
[1749767909450,0.00567505,2641.3,2640.8,7.6292]
[1749767909646,0.00567505,2641.3,2641.2,0.75688]
[1749767909647,0.76253505,2641.3,2641.2,0.75688]
[1749767909850,0.00567505,2641.3,2640.8,10.837]
[1749767910051,0.75694,2641.0,2640.9,0.75694]
[1749767910249,0.75688,2641.2,2641.1,0.7569]
[1749767910441,0.75693,2641.0,2640.9,2.02614]
[1749767910754,0.75696,2640.9,2640.8,7.11699]
[1749767910946,0.75692,2641.1,2641.0,0.75692]
[1749767911647,0.75695,2641.0,2640.9,0.75695]
[1749767911843,0.75696,2640.9,2640.8,8.38618]
[1749767912047,0.75696,2640.9,2640.8,7.6292]
[1749767912752,0.75696,2640.9,2640.8,6.36]
[1749767914055,0.75696,2640.9,2640.8,7.11699]
[1749767914557,0.75696,2640.9,2640.8,6.36]
[1749767915950,0.75696,2640.9,2640.8,6.4220172]
[1749767917056,3.96476,2640.9,2640.8,0.0620172]
[1749767917252,4.41906,2640.9,2640.8,0.0620172]
[1749767920057,0.75705,2640.6,2640.5,6.36]
[1749767920360,0.75714,2640.3,2640.2,3.2078]
[1749767920560,1.8927,2640.5,2640.2,3.2078]
[1749767920561,0.75712,2640.4,2640.3,0.75711]
[1749767920861,0.75712,2640.4,2640.3,1.3054]
[1749767921456,0.75716,2640.2,2640.1,29.256]
[1749767921857,0.75716,2640.3,2640.2,0.75714]
[1749767922060,0.75716,2640.3,2640.2,2.06254]
[1749767922459,3.9651,2640.7,2640.6,0.75705]
[1749767922659,0.75708,2640.6,2640.5,0.75706]
[1749767922855,0.75708,2640.5,2640.4,0.6462]
[1749767923458,0.75722,2640.0,2639.9,3.2078]
[1749767926663,0.75722,2640.0,2639.9,5.27105]
[1749767926851,0.75722,2640.0,2639.9,4.5138]
[1749767927461,0.75722,2640.0,2639.9,3.2078]
[1749767927665,0.75725,2639.9,2639.8,6.36]
[1749767928462,0.75725,2639.9,2639.8,7.6698]
[1749767928865,4.42615,2640.2,2639.4,3.76479537]
[1749767929166,0.75733,2639.7,2639.6,0.75731]
[1749767929367,3.22857505,2640.1,2639.5,8.42815]
[1749767929368,0.75734,2639.6,2639.5,8.42815]
[1749767930170,0.75734,2639.6,2639.5,7.6708]
[1749767930569,0.75734,2639.6,2639.5,8.42817]
[1749767930760,0.00567505,2640.1,2639.7,1.89328]
[1749767930967,0.00567505,2640.1,2639.8,5.8331]
[1749767931167,0.00567505,2640.1,2640.0,0.75722]
[1749767931767,0.00567505,2640.1,2640.0,2.07682]
[1749767931969,0.75722,2640.0,2639.9,0.0620172]
[1749767935174,0.75722,2640.0,2639.9,0.8192672]
[1749767935370,0.00567505,2640.1,2640.0,0.75722]
[1749767935566,0.7573,2640.7,2640.0,0.75722]
[1749767935567,0.75713,2640.4,2640.3,0.75711]
[1749767935769,0.75713,2640.4,2640.3,6.362]
[1749767936666,0.75715,2640.3,2640.2,0.75714]
[1749767936871,0.75715,2640.3,2640.2,8.45174]
[1749767937474,0.75715,2640.3,2640.2,7.6946]
[1749767937675,0.75715,2640.3,2640.2,8.45176]
[1749767937874,0.75712,2640.4,2640.3,0.7571]
[1749767938071,0.7571,2640.5,2640.4,0.75709]
[1749767938266,0.75711,2640.4,2640.3,2.08972]
[1749767938469,0.75711,2640.4,2640.3,1.3326]
[1749767939275,0.75711,2640.4,2640.1,24.53685505]
[1749767939276,0.75716,2640.2,2640.1,0.00567505]
[1749767939678,0.75716,2640.2,2640.1,1.26117505]
[1749767941976,0.75716,2640.2,2640.1,0.00567505]
[1749767942577,0.7574,2640.3,2640.2,0.75716]
[1749767942781,0.7574,2640.3,2640.2,7.11416]
[1749767943272,0.7460427,2640.3,2640.2,15.87895537]
[1749767943472,3.2078,2641.4,2640.2,38.02279537]
[1749767943673,3.2078,2641.8,2641.0,1.89233]
[1749767943871,1.89199,2641.5,2641.1,31.452]
[1749767944068,1.89241,2641.0,2640.6,9.0425685]
[1749767944283,0.6529,2640.9,2640.5,2.08008]
[1749767944474,0.75705,2640.6,2640.5,2.08008]
[1749767945273,0.75705,2640.6,2640.5,1.323]
[1749767945475,0.75708,2640.5,2640.4,23.77667505]
[1749767946780,1.21148,2640.5,2640.4,23.77667505]
[1749767948575,1.21148,2640.5,2640.4,24.99967505]
[1749767948779,1.21148,2640.5,2640.4,0.00567505]
[1749767950787,2.48588,2640.5,2640.4,0.00567505]
[1749767951885,1.21148,2640.5,2640.4,0.00567505]
[1749767952186,1.21148,2640.5,2640.4,0.76278505]
[1749767952382,1.21148,2640.5,2640.4,0.00567505]
[1749767952784,2.50898,2640.5,2640.4,0.00567505]
[1749767953687,1.21148,2640.5,2640.4,0.00567505]
[1749767956980,2.44208,2640.5,2640.4,5.05e-06]
[1749767957188,0.75716,2640.2,2640.1,2.25e-06]
[1749767957381,3.96496,2640.2,2640.1,2.25e-06]
[1749767958094,4.60376,2640.2,2640.1,2.25e-06]
[1749767963898,9.60376,2640.2,2640.1,2.25e-06]
[1749767964493,15.96176,2640.2,2640.1,2.25e-06]
[1749767967005,17.09754,2640.2,2639.4,0.6471]
[1749767967188,0.75737,2639.5,2639.4,0.6471]
[1749767967392,0.75748,2639.1,2639.0,3.2078]
[1749767967594,0.75744,2639.3,2639.2,0.75742]
[1749767968093,0.75741,2639.4,2639.3,0.75739]
[1749767968289,0.00567505,2639.5,2639.2,0.6022]
[1749767968488,0.00567505,2639.5,2639.4,0.75739]
[1749767968690,0.76304505,2639.5,2639.4,0.75739]
[1749767969001,0.76304505,2639.5,2639.4,2.02369]
[1749767969695,0.00567505,2639.5,2639.4,2.02369]
[1749767969897,0.00567505,2639.5,2639.4,8.37969]
[1749767970097,0.00567505,2639.5,2639.4,13.37969]
[1749767970595,0.00567505,2639.5,2639.4,7.02369]
[1749767970897,0.76304505,2639.5,2639.4,8.37969]
[1749767972002,0.00567505,2639.5,2639.4,13.37969]
[1749767972694,0.75722,2640.1,2640.0,0.75722]
[1749767973396,0.75723,2640.1,2640.0,0.7572]
[1749767973602,0.75725,2639.9,2639.8,8.38464505]
[1749767974196,0.75724,2640.0,2639.9,0.75722]
[1749767974402,0.75724,2640.0,2639.9,2.02292]
[1749767974616,0.75724,2640.0,2639.9,1.2657]
[1749767975596,1.21174,2640.0,2639.9,1.2657]
[1749767975903,1.21174,2640.0,2639.9,1.9074]
[1749767976605,1.21174,2640.0,2639.9,2.66465]
[1749767978507,1.21174,2640.0,2639.9,1.9074]
[1749767979210,1.21174,2640.0,2639.9,0.6417]
[1749767980108,1.21174,2640.0,2639.9,1.9388]
[1749767981811,0.75725,2639.9,2639.8,0.00567505]
[1749767982311,0.75737,2639.5,2639.4,0.0620172]
[1749767982908,0.6147,2639.6,2639.5,0.75737]
[1749767983211,0.4545,2640.0,2639.9,0.75725]
[1749767983406,0.4545,2640.0,2639.9,7.11325]
[1749767983615,0.00567505,2640.3,2640.2,0.75716]
[1749767984008,0.75716,2640.2,2640.1,1.8501]
[1749767984208,0.00567505,2640.3,2640.1,1.8501]
[1749767984412,0.76283505,2640.3,2640.2,1.2369]
[1749767984710,3.97063505,2640.3,2640.2,1.2369]
[1749767984911,0.75719,2640.1,2640.0,0.6047]
[1749767985109,0.75719,2640.1,2640.0,1.8416]
[1749767985313,0.75719,2640.1,2640.0,2.59882]
[1749767985613,0.75719,2640.1,2640.0,2.59881]
[1749767986514,0.75718,2640.2,2640.1,0.75718]
[1749767987818,0.00567505,2640.3,2640.2,0.75716]
[1749767988010,0.00567505,2640.3,2640.1,3.2078]
[1749767988219,0.75716,2640.2,2640.1,3.2078]
[1749767988507,0.75716,2640.2,2640.1,0.75719]
[1749767988917,0.00567505,2640.3,2640.2,0.75716]
[1749767990014,0.00567505,2640.3,2640.2,5.75716]
[1749767990813,3.2078,2641.0,2640.9,0.75696]
[1749767991119,3.2078,2641.0,2640.9,7.11196]
[1749767991318,0.75696,2640.9,2640.8,0.6238]
[1749767991819,0.75702,2640.7,2640.6,6.36067505]
[1749767992018,0.75701,2640.8,2640.7,0.757]
[1749767992214,0.75699,2640.9,2640.8,0.75696]
[1749767992410,0.00567505,2641.1,2641.0,0.75694]
[1749767992613,0.75696,2641.0,2640.9,0.75695]
[1749767993515,0.76260505,2641.1,2641.0,0.75694]
[1749767993711,0.76260505,2641.1,2641.0,6.355]
[1749767994107,0.76260505,2641.1,2641.0,6.9887]
[1749767995420,0.76260505,2641.1,2641.0,6.355]
[1749767995716,0.75696,2640.9,2640.8,0.6337]
[1749767996019,0.75696,2640.9,2640.8,6.354]
[1749767996813,0.75695,2641.0,2640.9,0.75694]
[1749767997017,0.76259505,2641.1,2641.0,0.75694]
[1749767997722,0.75694,2641.0,2640.9,1.38594]
[1749767998418,0.75694,2641.0,2640.9,0.629]
[1749767998630,0.75694,2641.0,2640.9,1.38596]
[1749767999320,0.75696,2640.9,2640.8,10.31877]
[1749768000629,0.75694,2641.0,2640.9,0.75694]
[1749768000825,0.76261505,2641.1,2641.0,0.75694]
[1749768001821,0.00567505,2641.1,2641.0,5.75694]
[1749768002227,0.00567505,2641.1,2641.0,9.52509873]
[1749768002818,0.00567505,2641.1,2641.0,4.52509873]
[1749768003029,0.00567505,2641.1,2641.0,30.90294]
[1749768003925,0.00567505,2641.1,2641.0,35.90294]
[1749768004233,5.05e-06,2641.1,2641.0,39.67109873]
[1749768004430,3.2078,2642.0,2641.9,0.75668]
[1749768004622,3.96446,2642.0,2641.9,7.11568]
[1749768005219,3.96446,2642.0,2641.9,6.359]
[1749768005429,0.75673,2641.7,2641.6,9.5668]
[1749768006230,0.75673,2641.7,2641.6,6.359]
[1749768006425,0.75685,2641.3,2641.2,9.5668]
[1749768008931,2.03185,2641.3,2641.2,9.5668]
[1749768009835,2.03185,2641.3,2641.2,6.359]
[1749768010534,0.75685,2641.3,2641.2,7.11588]
[1749768010726,0.75685,2641.3,2641.2,6.359]
[1749768011632,3.96465,2641.3,2641.2,6.359]
[1749768011933,5.29175,2641.3,2641.2,6.359]
[1749768012131,0.75691,2641.1,2641.0,0.0620172]
[1749768012327,0.75688,2641.3,2641.0,0.0620172]
[1749768012537,0.6275,2641.5,2641.3,0.75685]
[1749768012833,0.6275,2641.5,2641.3,7.11585]
[1749768012834,0.75682,2641.4,2641.3,7.11585]
[1749768013329,0.75682,2641.4,2641.3,8.37845]
[1749768013742,0.75682,2641.4,2641.3,7.6216]
[1749768014242,0.75682,2641.4,2641.3,8.37845]